[Event "Titled Tuesday Blitz January 03 Early 2023"]
[White "Jiganchine, Roman"]
[Black "Dushyant Sharma"]
[WhiteFideId "2603667"]
[BlackFideId "25065130"]
[WhiteElo "2205"]
[BlackElo "2355"]
[Result "1/2-1/2"]
[Round "02"]
[TimeControl "180+2"]
[Date "2023.01.03"]
[WhiteClock "0:00:35"]
[BlackClock "0:00:29"]

1. e4 {[%clk 0:03:00]}  d5 {[%clk 0:02:41]} 2. exd5 {[%clk 0:02:58]}  Nf6 {[%clk 0:02:40]} 3. c4 {[%clk 0:02:58]}  c6 {[%clk 0:02:40]} 4. d4 {[%clk 0:02:54]}  cxd5 {[%clk 0:02:40]} 5. Nc3 {[%clk 0:02:48]}  e6 {[%clk 0:02:39]} 6. Nf3 {[%clk 0:02:47]}  Nc6 {[%clk 0:02:39]} 7. cxd5 {[%clk 0:02:45]}  exd5 {[%clk 0:02:37]} 8. Bb5 {[%clk 0:02:45]}  Bg4 {[%clk 0:02:30]} 9. Qa4 {[%clk 0:02:35]}  Rc8 {[%clk 0:02:25]} 10. Ne5 {[%clk 0:02:33]}  Bd7 {[%clk 0:02:21]} 11. Nxd7 {[%clk 0:02:32]}  Qxd7 {[%clk 0:02:20]} 12. O-O {[%clk 0:02:32]}  Be7 {[%clk 0:02:20]} 13. Re1 {[%clk 0:02:28]}  O-O {[%clk 0:02:17]} 14. Bf4 {[%clk 0:02:28]}  a6 {[%clk 0:01:56]} 15. Bxc6 {[%clk 0:02:09]}  Rxc6 {[%clk 0:01:52]} 16. Be5 {[%clk 0:02:08]}  b5 {[%clk 0:01:50]} 17. Qb3 {[%clk 0:02:05]}  Rfc8 {[%clk 0:01:48]} 18. Bxf6 {[%clk 0:01:57]}  Bxf6 {[%clk 0:01:48]} 19. Nxd5 {[%clk 0:01:57]}  h6 {[%clk 0:01:25]} 20. Rad1 {[%clk 0:01:55]}  Rd6 {[%clk 0:01:16]} 21. Nxf6+ {[%clk 0:01:45]}  Rxf6 {[%clk 0:01:17]} 22. h3 {[%clk 0:01:41]}  Rd6 {[%clk 0:01:15]} 23. d5 {[%clk 0:01:08]}  Rd8 {[%clk 0:01:10]} 24. Re5 {[%clk 0:01:01]}  a5 {[%clk 0:01:04]} 25. Qf3 {[%clk 0:01:00]}  b4 {[%clk 0:00:59]} 26. b3 {[%clk 0:00:56]}  a4 {[%clk 0:00:57]} 27. g4 {[%clk 0:00:56]}  Qb5 {[%clk 0:00:49]} 28. Kg2 {[%clk 0:00:54]}  Qa5 {[%clk 0:00:40]} 29. Qe4 {[%clk 0:00:53]}  Qb5 {[%clk 0:00:39]} 30. Rd4 {[%clk 0:00:50]}  Rb8 {[%clk 0:00:39]} 31. Re7 {[%clk 0:00:46]}  axb3 {[%clk 0:00:37]} 32. axb3 {[%clk 0:00:46]}  Qc5 {[%clk 0:00:35]} 33. Rd3 {[%clk 0:00:36]}  Qb5 {[%clk 0:00:29]} 34. Rd4 {[%clk 0:00:35]}  Qc5 {[%clk 0:00:29]} 35. Rd3 {[%clk 0:00:34]}  Qb5 {[%clk 0:00:29]} 36. Rd4 {[%clk 0:00:35]} 1/2-1/2


[Site "https://www.chess.com"]

[Event "Titled Tuesday Blitz January 03 Early 2023"]
[White "Borrmann, Laurenz"]
[Black "Lacasa Diaz, Jose Antonio"]
[WhiteFideId "312187930"]
[BlackFideId "2203375"]
[WhiteElo "2304"]
[BlackElo "2359"]
[Result "1-0"]
[Round "02"]
[TimeControl "180+2"]
[Date "2023.01.03"]
[WhiteClock "0:00:08"]
[BlackClock "0:00:19"]

1. e4 {[%clk 0:03:00]}  c5 {[%clk 0:02:59]} 2. Nf3 {[%clk 0:03:00]}  g6 {[%clk 0:02:59]} 3. c4 {[%clk 0:02:58]}  Nc6 {[%clk 0:02:58]} 4. d4 {[%clk 0:02:57]}  cxd4 {[%clk 0:02:59]} 5. Nxd4 {[%clk 0:02:58]}  Nf6 {[%clk 0:03:00]} 6. Nc3 {[%clk 0:02:57]}  Nxd4 {[%clk 0:03:00]} 7. Qxd4 {[%clk 0:02:57]}  d6 {[%clk 0:03:01]} 8. Be2 {[%clk 0:02:46]}  Bg7 {[%clk 0:03:01]} 9. Be3 {[%clk 0:02:31]}  O-O {[%clk 0:03:02]} 10. Qd2 {[%clk 0:02:29]}  a5 {[%clk 0:03:02]} 11. O-O {[%clk 0:02:27]}  a4 {[%clk 0:03:02]} 12. Rfd1 {[%clk 0:02:06]}  Qa5 {[%clk 0:03:02]} 13. Rab1 {[%clk 0:02:01]}  Be6 {[%clk 0:02:59]} 14. f3 {[%clk 0:01:47]}  Rfc8 {[%clk 0:02:53]} 15. b3 {[%clk 0:01:29]}  axb3 {[%clk 0:02:42]} 16. axb3 {[%clk 0:01:29]}  Qb4 {[%clk 0:02:29]} 17. Bd4 {[%clk 0:01:00]}  Nd7 {[%clk 0:02:26]} 18. Nd5 {[%clk 0:00:49]}  Bxd4+ {[%clk 0:01:43]} 19. Qxd4 {[%clk 0:00:50]}  Bxd5 {[%clk 0:01:43]} 20. exd5 {[%clk 0:00:51]}  Ra3 {[%clk 0:01:33]} 21. Qg4 {[%clk 0:00:25]}  Qc5+ {[%clk 0:01:13]} 22. Kh1 {[%clk 0:00:25]}  Nf6 {[%clk 0:01:05]} 23. Qf4 {[%clk 0:00:20]}  Qb4 {[%clk 0:00:51]} 24. Qe3 {[%clk 0:00:17]}  Rc7 {[%clk 0:00:44]} 25. h4 {[%clk 0:00:17]}  Kg7 {[%clk 0:00:21]} 26. Kh2 {[%clk 0:00:17]}  b5 {[%clk 0:00:19]} 27. Qd4 {[%clk 0:00:12]}  Ra2 {[%clk 0:00:17]} 28. Bf1 {[%clk 0:00:10]}  Qc5 {[%clk 0:00:16]} 29. cxb5 {[%clk 0:00:07]}  Qxd4 {[%clk 0:00:14]} 30. Rxd4 {[%clk 0:00:08]}  Rcc2 {[%clk 0:00:13]} 31. b6 {[%clk 0:00:07]}  Nd7 {[%clk 0:00:14]} 32. Rb4 {[%clk 0:00:06]}  Rc8 {[%clk 0:00:13]} 33. b7 {[%clk 0:00:04]}  Rb8 {[%clk 0:00:14]} 34. Rc1 {[%clk 0:00:04]}  Nc5 {[%clk 0:00:14]} 35. Rb6 {[%clk 0:00:03]}  Rxb7 {[%clk 0:00:13]} 36. Rxb7 {[%clk 0:00:03]}  Nxb7 {[%clk 0:00:13]} 37. Rc7 {[%clk 0:00:03]}  Nc5 {[%clk 0:00:14]} 38. Bc4 {[%clk 0:00:03]}  Kf6 {[%clk 0:00:10]} 39. b4 {[%clk 0:00:04]}  Na4 {[%clk 0:00:10]} 40. Bxa2 {[%clk 0:00:03]}  Nb6 {[%clk 0:00:10]} 41. Rb7 {[%clk 0:00:04]}  Nxd5 {[%clk 0:00:11]} 42. Bxd5 {[%clk 0:00:03]}  Ke5 {[%clk 0:00:12]} 43. Bc6 {[%clk 0:00:03]}  Kd4 {[%clk 0:00:13]} 44. b5 {[%clk 0:00:04]}  Kc3 {[%clk 0:00:14]} 45. Rxe7 {[%clk 0:00:03]}  Kd2 {[%clk 0:00:15]} 46. Rxf7 {[%clk 0:00:04]}  Ke3 {[%clk 0:00:15]} 47. Rd7 {[%clk 0:00:04]}  Kf2 {[%clk 0:00:16]} 48. Rxd6 {[%clk 0:00:05]}  Ke1 {[%clk 0:00:17]} 49. Rd7 {[%clk 0:00:06]}  Kf2 {[%clk 0:00:17]} 50. Re7 {[%clk 0:00:07]}  g5 {[%clk 0:00:18]} 51. b6 {[%clk 0:00:08]}  gxh4 {[%clk 0:00:18]} 52. Kh3 {[%clk 0:00:07]}  h5 {[%clk 0:00:19]} 53. b7 {[%clk 0:00:07]}  Kg1 {[%clk 0:00:19]} 54. b8=Q {[%clk 0:00:08]} 1-0


[Site "https://www.chess.com"]

[Event "Titled Tuesday Blitz January 03 Early 2023"]
[White "Mayaud, Raphael"]
[Black "Ozdemir, Serhan Berat"]
[WhiteFideId "627151"]
[BlackFideId "6374611"]
[WhiteElo "2201"]
[BlackElo "2223"]
[Result "0-1"]
[Round "02"]
[TimeControl "180+2"]
[Date "2023.01.03"]
[WhiteClock "0:00:19"]
[BlackClock "0:01:09"]

1. d4 {[%clk 0:02:54]}  Nf6 {[%clk 0:02:46]} 2. Nf3 {[%clk 0:02:51]}  g6 {[%clk 0:02:39]} 3. e3 {[%clk 0:02:51]}  Bg7 {[%clk 0:02:39]} 4. Be2 {[%clk 0:02:51]}  O-O {[%clk 0:02:40]} 5. O-O {[%clk 0:02:51]}  d6 {[%clk 0:02:40]} 6. b3 {[%clk 0:02:49]}  e5 {[%clk 0:02:40]} 7. dxe5 {[%clk 0:02:41]}  Ng4 {[%clk 0:02:40]} 8. Bb2 {[%clk 0:02:40]}  Nc6 {[%clk 0:02:40]} 9. Nbd2 {[%clk 0:02:31]}  Ngxe5 {[%clk 0:02:39]} 10. Nxe5 {[%clk 0:02:17]}  dxe5 {[%clk 0:02:24]} 11. Nc4 {[%clk 0:02:13]}  Qg5 {[%clk 0:02:19]} 12. f4 {[%clk 0:01:34]}  exf4 {[%clk 0:02:09]} 13. Bxg7 {[%clk 0:01:34]}  Kxg7 {[%clk 0:02:09]} 14. exf4 {[%clk 0:01:32]}  Qc5+ {[%clk 0:02:06]} 15. Kh1 {[%clk 0:01:32]}  Bf5 {[%clk 0:02:01]} 16. Bf3 {[%clk 0:01:17]}  Rad8 {[%clk 0:01:57]} 17. Qc1 {[%clk 0:01:17]}  Nd4 {[%clk 0:01:38]} 18. Qb2 {[%clk 0:01:13]}  Kg8 {[%clk 0:01:39]} 19. Ne3 {[%clk 0:00:54]}  Nxf3 {[%clk 0:01:22]} 20. Nxf5 {[%clk 0:00:51]}  Qxf5 {[%clk 0:01:20]} 21. Rxf3 {[%clk 0:00:49]}  Rd2 {[%clk 0:01:20]} 22. Qc3 {[%clk 0:00:46]}  Rfd8 {[%clk 0:01:17]} 23. Qxc7 {[%clk 0:00:21]}  Qxc2 {[%clk 0:01:10]} 24. Rg3 {[%clk 0:00:19]}  Qxc7 {[%clk 0:01:09]} 0-1


[Site "https://www.chess.com"]

[Event "Titled Tuesday Blitz January 03 Early 2023"]
[White "Tomaszewski, Kacper"]
[Black "Bashirli, Saadat"]
[WhiteFideId "1127373"]
[BlackFideId "13429990"]
[WhiteElo "2313"]
[BlackElo "1571"]
[Result "1/2-1/2"]
[Round "02"]
[TimeControl "180+2"]
[Date "2023.01.03"]
[WhiteClock "0:00:06"]
[BlackClock "0:00:15"]

1. e4 {[%clk 0:03:00]}  c5 {[%clk 0:02:57]} 2. Nf3 {[%clk 0:03:00]}  g6 {[%clk 0:02:57]} 3. c3 {[%clk 0:03:00]}  Nf6 {[%clk 0:02:54]} 4. e5 {[%clk 0:02:57]}  Nd5 {[%clk 0:02:54]} 5. d4 {[%clk 0:02:55]}  cxd4 {[%clk 0:02:55]} 6. cxd4 {[%clk 0:02:51]}  d6 {[%clk 0:02:54]} 7. Nc3 {[%clk 0:02:51]}  dxe5 {[%clk 0:02:50]} 8. Bb5+ {[%clk 0:02:46]}  Nc6 {[%clk 0:02:44]} 9. Nxe5 {[%clk 0:02:44]}  Nxc3 {[%clk 0:02:37]} 10. bxc3 {[%clk 0:02:40]}  Bd7 {[%clk 0:02:36]} 11. Nxd7 {[%clk 0:02:31]}  Qxd7 {[%clk 0:02:37]} 12. O-O {[%clk 0:02:18]}  a6 {[%clk 0:02:27]} 13. Qa4 {[%clk 0:02:06]}  Rc8 {[%clk 0:02:20]} 14. Bd3 {[%clk 0:02:02]}  Bg7 {[%clk 0:02:11]} 15. Ba3 {[%clk 0:01:58]}  O-O {[%clk 0:02:04]} 16. Rfd1 {[%clk 0:01:55]}  Qc7 {[%clk 0:01:57]} 17. Rac1 {[%clk 0:01:52]}  Rfd8 {[%clk 0:01:55]} 18. h3 {[%clk 0:01:50]}  e5 {[%clk 0:01:53]} 19. dxe5 {[%clk 0:01:23]}  Nxe5 {[%clk 0:01:49]} 20. Be2 {[%clk 0:01:24]}  Rxd1+ {[%clk 0:01:47]} 21. Qxd1 {[%clk 0:01:23]}  Nc4 {[%clk 0:01:46]} 22. Bb4 {[%clk 0:01:18]}  a5 {[%clk 0:01:45]} 23. Bxc4 {[%clk 0:01:16]}  Qxc4 {[%clk 0:01:41]} 24. Bxa5 {[%clk 0:01:16]}  Qxa2 {[%clk 0:01:41]} 25. Qd7 {[%clk 0:01:09]}  Ra8 {[%clk 0:01:31]} 26. Bb4 {[%clk 0:01:09]}  Qb2 {[%clk 0:01:30]} 27. Re1 {[%clk 0:00:58]}  Bxc3 {[%clk 0:01:21]} 28. Re8+ {[%clk 0:00:48]}  Rxe8 {[%clk 0:01:18]} 29. Qxe8+ {[%clk 0:00:48]}  Kg7 {[%clk 0:01:19]} 30. Qf8+ {[%clk 0:00:42]}  Kf6 {[%clk 0:01:18]} 31. Qh8+ {[%clk 0:00:42]}  Ke6 {[%clk 0:01:16]} 32. Qxc3 {[%clk 0:00:40]}  Qxc3 {[%clk 0:01:14]} 33. Bxc3 {[%clk 0:00:40]}  b5 {[%clk 0:01:14]} 34. Kh2 {[%clk 0:00:39]}  Kd5 {[%clk 0:01:08]} 35. Kg3 {[%clk 0:00:39]}  Ke4 {[%clk 0:01:05]} 36. Bf6 {[%clk 0:00:38]}  b4 {[%clk 0:01:04]} 37. f4 {[%clk 0:00:36]}  b3 {[%clk 0:01:02]} 38. Kg4 {[%clk 0:00:37]}  h6 {[%clk 0:00:55]} 39. g3 {[%clk 0:00:35]}  Ke3 {[%clk 0:00:48]} 40. h4 {[%clk 0:00:34]}  Kf2 {[%clk 0:00:40]} 41. h5 {[%clk 0:00:33]}  gxh5+ {[%clk 0:00:38]} 42. Kh4 {[%clk 0:00:33]}  Kf3 {[%clk 0:00:35]} 43. Bb2 {[%clk 0:00:27]}  f5 {[%clk 0:00:35]} 44. Bc3 {[%clk 0:00:18]}  Kg2 {[%clk 0:00:32]} 45. Bb2 {[%clk 0:00:18]}  Kf3 {[%clk 0:00:31]} 46. Kh3 {[%clk 0:00:18]}  Kf2 {[%clk 0:00:29]} 47. Bd4+ {[%clk 0:00:18]}  Kf3 {[%clk 0:00:30]} 48. Bc3 {[%clk 0:00:19]}  Kf2 {[%clk 0:00:30]} 49. Bb2 {[%clk 0:00:19]}  Kf3 {[%clk 0:00:30]} 50. Bd4 {[%clk 0:00:19]}  Ke4 {[%clk 0:00:28]} 51. Be5 {[%clk 0:00:20]}  Kf3 {[%clk 0:00:28]} 52. Kh2 {[%clk 0:00:20]}  Kf2 {[%clk 0:00:27]} 53. Bd4+ {[%clk 0:00:20]}  Kf3 {[%clk 0:00:27]} 54. Bc3 {[%clk 0:00:20]}  Kf2 {[%clk 0:00:26]} 55. Bg7 {[%clk 0:00:20]}  Kf3 {[%clk 0:00:25]} 56. Bd4 {[%clk 0:00:20]}  Ke4 {[%clk 0:00:23]} 57. Ba1 {[%clk 0:00:16]}  Kf3 {[%clk 0:00:23]} 58. Be5 {[%clk 0:00:14]}  Kf2 {[%clk 0:00:22]} 59. Kh3 {[%clk 0:00:14]}  Kf3 {[%clk 0:00:21]} 60. Kh4 {[%clk 0:00:15]}  Kg2 {[%clk 0:00:20]} 61. Bb2 {[%clk 0:00:08]}  Kh2 {[%clk 0:00:17]} 62. Bg7 {[%clk 0:00:05]}  Kg2 {[%clk 0:00:16]} 63. Kxh5 {[%clk 0:00:04]}  Kxg3 {[%clk 0:00:16]} 64. Be5 {[%clk 0:00:03]}  b2 {[%clk 0:00:15]} 65. Bxb2 {[%clk 0:00:04]}  Kxf4 {[%clk 0:00:15]} 66. Bc1+ {[%clk 0:00:05]}  Ke4 {[%clk 0:00:15]} 67. Bxh6 {[%clk 0:00:06]}  f4 {[%clk 0:00:15]} 68. Bxf4 {[%clk 0:00:06]} 1/2-1/2


[Site "https://www.chess.com"]

[Event "Titled Tuesday Blitz January 03 Early 2023"]
[White "Bilan, Danila"]
[Black "Zaichenko, Daria"]
[WhiteFideId "24161918"]
[BlackFideId "4197453"]
[WhiteElo "2303"]
[BlackElo "2104"]
[Result "1-0"]
[Round "02"]
[TimeControl "180+2"]
[Date "2023.01.03"]
[WhiteClock "0:01:15"]
[BlackClock "0:01:33"]

1. d4 {[%clk 0:03:00]}  d5 {[%clk 0:02:59]} 2. Nf3 {[%clk 0:03:01]}  Bf5 {[%clk 0:02:58]} 3. c4 {[%clk 0:03:00]}  e6 {[%clk 0:02:58]} 4. Nc3 {[%clk 0:02:57]}  Nf6 {[%clk 0:02:57]} 5. Qb3 {[%clk 0:02:54]}  b6 {[%clk 0:02:50]} 6. Bg5 {[%clk 0:02:45]}  c6 {[%clk 0:02:40]} 7. e3 {[%clk 0:02:27]}  Be7 {[%clk 0:02:39]} 8. Ne5 {[%clk 0:02:19]}  h6 {[%clk 0:02:32]} 9. Bh4 {[%clk 0:02:11]}  Ne4 {[%clk 0:02:29]} 10. Bxe7 {[%clk 0:02:02]}  Qxe7 {[%clk 0:02:28]} 11. cxd5 {[%clk 0:02:00]}  exd5 {[%clk 0:02:21]} 12. Rc1 {[%clk 0:01:37]}  f6 {[%clk 0:02:09]} 13. Nxc6 {[%clk 0:01:19]}  Nxc6 {[%clk 0:02:03]} 14. Nxd5 {[%clk 0:01:18]}  Qd6 {[%clk 0:01:33]} 15. Rxc6 {[%clk 0:01:15]} 1-0


[Site "https://www.chess.com"]

[Event "Titled Tuesday Blitz January 03 Early 2023"]
[White "Murtazin, Ruslan"]
[Black "Slovineanu"]
[WhiteFideId "24175960"]
[WhiteElo "2247"]
[BlackElo "2294"]
[Result "1-0"]
[Round "02"]
[TimeControl "180+2"]
[Date "2023.01.03"]
[WhiteClock "0:00:09"]
[BlackClock "0:00:05"]

1. e4 {[%clk 0:02:59]}  c5 {[%clk 0:02:55]} 2. Nf3 {[%clk 0:02:59]}  Nc6 {[%clk 0:02:55]} 3. Bb5 {[%clk 0:02:58]}  d6 {[%clk 0:02:47]} 4. Bxc6+ {[%clk 0:02:52]}  bxc6 {[%clk 0:02:48]} 5. O-O {[%clk 0:02:52]}  g6 {[%clk 0:02:47]} 6. c3 {[%clk 0:02:52]}  Bg7 {[%clk 0:02:47]} 7. h3 {[%clk 0:02:51]}  e6 {[%clk 0:02:46]} 8. d4 {[%clk 0:02:51]}  cxd4 {[%clk 0:02:46]} 9. cxd4 {[%clk 0:02:52]}  Ne7 {[%clk 0:02:44]} 10. Nc3 {[%clk 0:02:51]}  O-O {[%clk 0:02:44]} 11. Bf4 {[%clk 0:02:50]}  Bb7 {[%clk 0:02:32]} 12. Qd2 {[%clk 0:02:44]}  d5 {[%clk 0:02:21]} 13. e5 {[%clk 0:02:40]}  Qa5 {[%clk 0:02:01]} 14. a3 {[%clk 0:02:23]}  c5 {[%clk 0:01:57]} 15. Nxd5 {[%clk 0:02:23]}  Qd8 {[%clk 0:01:45]} 16. Nxe7+ {[%clk 0:02:23]}  Qxe7 {[%clk 0:01:45]} 17. dxc5 {[%clk 0:02:08]}  Qxc5 {[%clk 0:01:32]} 18. Qe3 {[%clk 0:02:03]}  Qxe3 {[%clk 0:01:25]} 19. fxe3 {[%clk 0:02:03]}  Rfd8 {[%clk 0:01:20]} 20. Nd4 {[%clk 0:02:02]}  Bf8 {[%clk 0:01:16]} 21. Rac1 {[%clk 0:02:01]}  Rac8 {[%clk 0:01:15]} 22. Bg5 {[%clk 0:02:00]}  Rxc1 {[%clk 0:01:10]} 23. Rxc1 {[%clk 0:01:55]}  Rc8 {[%clk 0:01:11]} 24. Rd1 {[%clk 0:01:10]}  Bc5 {[%clk 0:01:08]} 25. Rd2 {[%clk 0:01:08]}  Bd5 {[%clk 0:00:58]} 26. Nb5 {[%clk 0:00:53]}  Rb8 {[%clk 0:00:47]} 27. Nc3 {[%clk 0:00:53]}  Bc4 {[%clk 0:00:35]} 28. Kf2 {[%clk 0:00:43]}  Kg7 {[%clk 0:00:35]} 29. Ne4 {[%clk 0:00:37]}  Bb6 {[%clk 0:00:16]} 30. Bf6+ {[%clk 0:00:29]}  Kg8 {[%clk 0:00:12]} 31. Be7 {[%clk 0:00:29]}  h6 {[%clk 0:00:12]} 32. Rd7 {[%clk 0:00:22]}  Bb5 {[%clk 0:00:08]} 33. Rd2 {[%clk 0:00:18]}  Bc6 {[%clk 0:00:07]} 34. Nc3 {[%clk 0:00:10]}  Be8 {[%clk 0:00:05]} 35. b4 {[%clk 0:00:09]}  Kh7 {[%clk 0:00:05]} 36. Ne4 {[%clk 0:00:09]}  a6 {[%clk 0:00:05]} 37. Bc5 {[%clk 0:00:09]} 1-0


[Site "https://www.chess.com"]

[Event "Titled Tuesday Blitz January 03 Early 2023"]
[White "Grot, Blazej"]
[Black "Bazarov, Konstantin"]
[WhiteFideId "21835845"]
[BlackFideId "4137000"]
[WhiteElo "1990"]
[BlackElo "2235"]
[Result "1/2-1/2"]
[Round "02"]
[TimeControl "180+2"]
[Date "2023.01.03"]
[WhiteClock "0:02:36"]
[BlackClock "0:02:30"]

1. e4 {[%clk 0:03:00]}  c6 {[%clk 0:02:59]} 2. d4 {[%clk 0:03:00]}  d5 {[%clk 0:02:59]} 3. Nd2 {[%clk 0:03:00]}  dxe4 {[%clk 0:02:59]} 4. Nxe4 {[%clk 0:03:01]}  Nf6 {[%clk 0:02:59]} 5. Nxf6+ {[%clk 0:03:01]}  exf6 {[%clk 0:03:00]} 6. c3 {[%clk 0:03:01]}  Bd6 {[%clk 0:03:00]} 7. Bd3 {[%clk 0:03:01]}  O-O {[%clk 0:03:00]} 8. Ne2 {[%clk 0:03:01]}  Nd7 {[%clk 0:02:53]} 9. O-O {[%clk 0:03:01]}  Qc7 {[%clk 0:02:50]} 10. Ng3 {[%clk 0:02:57]}  g6 {[%clk 0:02:48]} 11. Re1 {[%clk 0:02:51]}  Nb6 {[%clk 0:02:43]} 12. Qf3 {[%clk 0:02:48]}  f5 {[%clk 0:02:34]} 13. Bh6 {[%clk 0:02:42]}  Rd8 {[%clk 0:02:33]} 14. Bg5 {[%clk 0:02:42]}  Rf8 {[%clk 0:02:32]} 15. Bh6 {[%clk 0:02:37]}  Rd8 {[%clk 0:02:31]} 16. Bg5 {[%clk 0:02:36]}  Rf8 {[%clk 0:02:30]} 17. Bh6 {[%clk 0:02:36]} 1/2-1/2


[Site "https://www.chess.com"]

[Event "Titled Tuesday Blitz January 03 Early 2023"]
[White "Iljin, Timofey"]
[Black "Dilmukhametov, Artur"]
[WhiteFideId "14110180"]
[BlackFideId "24179922"]
[WhiteElo "2329"]
[BlackElo "2276"]
[Result "1-0"]
[Round "02"]
[TimeControl "180+2"]
[Date "2023.01.03"]
[WhiteClock "0:02:25"]
[BlackClock "0:02:02"]

1. e4 {[%clk 0:03:00]}  e6 {[%clk 0:02:56]} 2. d4 {[%clk 0:03:00]}  d5 {[%clk 0:02:52]} 3. Nd2 {[%clk 0:03:00]}  Nf6 {[%clk 0:02:52]} 4. Bd3 {[%clk 0:02:59]}  c5 {[%clk 0:02:45]} 5. c3 {[%clk 0:02:58]}  Nc6 {[%clk 0:02:45]} 6. Ngf3 {[%clk 0:02:58]}  cxd4 {[%clk 0:02:42]} 7. cxd4 {[%clk 0:02:58]}  dxe4 {[%clk 0:02:41]} 8. Nxe4 {[%clk 0:02:58]}  Be7 {[%clk 0:02:41]} 9. O-O {[%clk 0:02:57]}  O-O {[%clk 0:02:39]} 10. Nc3 {[%clk 0:02:57]}  Nb4 {[%clk 0:02:38]} 11. Bb1 {[%clk 0:02:57]}  a6 {[%clk 0:02:31]} 12. a3 {[%clk 0:02:57]}  Nbd5 {[%clk 0:02:30]} 13. Qd3 {[%clk 0:02:57]}  b5 {[%clk 0:02:30]} 14. Bg5 {[%clk 0:02:56]}  g6 {[%clk 0:02:24]} 15. Ne5 {[%clk 0:02:56]}  Bb7 {[%clk 0:02:21]} 16. Bh6 {[%clk 0:02:47]}  Re8 {[%clk 0:02:19]} 17. Re1 {[%clk 0:02:48]}  Rc8 {[%clk 0:02:15]} 18. Qh3 {[%clk 0:02:33]}  Nxc3 {[%clk 0:02:13]} 19. bxc3 {[%clk 0:02:32]}  Qd5 {[%clk 0:02:08]} 20. Ba2 {[%clk 0:02:29]}  Qd6 {[%clk 0:02:02]} 21. Nxf7 {[%clk 0:02:25]} 1-0


[Site "https://www.chess.com"]

[Event "Titled Tuesday Blitz January 03 Early 2023"]
[White "Gavilan Diaz, Mario"]
[Black "Wieczorek, Zbigniew"]
[WhiteFideId "2260905"]
[BlackFideId "1102001"]
[WhiteElo "2271"]
[BlackElo "2150"]
[Result "1-0"]
[Round "02"]
[TimeControl "180+2"]
[Date "2023.01.03"]
[WhiteClock "0:01:22"]
[BlackClock "0:01:12"]

1. d4 {[%clk 0:03:00]}  Nf6 {[%clk 0:02:58]} 2. c4 {[%clk 0:03:00]}  e6 {[%clk 0:02:57]} 3. Nc3 {[%clk 0:03:00]}  Bb4 {[%clk 0:02:55]} 4. Qc2 {[%clk 0:03:01]}  d5 {[%clk 0:02:54]} 5. a3 {[%clk 0:02:58]}  Bxc3+ {[%clk 0:02:53]} 6. Qxc3 {[%clk 0:02:59]}  O-O {[%clk 0:02:43]} 7. Bg5 {[%clk 0:02:58]}  dxc4 {[%clk 0:02:43]} 8. Qxc4 {[%clk 0:02:57]}  Nc6 {[%clk 0:02:37]} 9. Nf3 {[%clk 0:02:55]}  Qd5 {[%clk 0:02:36]} 10. e3 {[%clk 0:02:24]}  Na5 {[%clk 0:02:02]} 11. Qc2 {[%clk 0:01:58]}  Ne4 {[%clk 0:01:37]} 12. Bf4 {[%clk 0:01:57]}  Nb3 {[%clk 0:01:32]} 13. Rd1 {[%clk 0:01:27]}  Qb5 {[%clk 0:01:12]} 14. Bxb5 {[%clk 0:01:22]} 1-0


[Site "https://www.chess.com"]

[Event "Titled Tuesday Blitz January 03 Early 2023"]
[White "Winterberg, Lukas"]
[Black "Schut, Han"]
[WhiteFideId "24622702"]
[BlackFideId "1005561"]
[WhiteElo "2402"]
[BlackElo "2101"]
[Result "1-0"]
[Round "02"]
[TimeControl "180+2"]
[Date "2023.01.03"]
[WhiteClock "0:01:57"]
[BlackClock "0:00:19"]

1. b3 {[%clk 0:02:56]}  e5 {[%clk 0:02:47]} 2. Bb2 {[%clk 0:02:52]}  Nc6 {[%clk 0:02:46]} 3. g3 {[%clk 0:02:52]}  d5 {[%clk 0:02:42]} 4. Bg2 {[%clk 0:02:53]}  Bd6 {[%clk 0:02:41]} 5. c4 {[%clk 0:02:53]}  d4 {[%clk 0:02:32]} 6. e3 {[%clk 0:02:53]}  Nb4 {[%clk 0:02:20]} 7. d3 {[%clk 0:02:51]}  Bf5 {[%clk 0:02:19]} 8. e4 {[%clk 0:02:51]}  Be6 {[%clk 0:02:10]} 9. a3 {[%clk 0:02:51]}  Na6 {[%clk 0:02:11]} 10. b4 {[%clk 0:02:51]}  c5 {[%clk 0:02:10]} 11. b5 {[%clk 0:02:50]}  Nc7 {[%clk 0:02:11]} 12. h4 {[%clk 0:02:49]}  f5 {[%clk 0:01:59]} 13. exf5 {[%clk 0:02:47]}  Bxf5 {[%clk 0:01:57]} 14. Bxb7 {[%clk 0:02:47]}  Nf6 {[%clk 0:01:46]} 15. Bc6+ {[%clk 0:02:44]}  Bd7 {[%clk 0:01:42]} 16. Bxd7+ {[%clk 0:02:30]}  Qxd7 {[%clk 0:01:40]} 17. Nd2 {[%clk 0:02:31]}  O-O {[%clk 0:01:35]} 18. Qe2 {[%clk 0:02:31]}  Rae8 {[%clk 0:01:27]} 19. Ne4 {[%clk 0:02:29]}  Ng4 {[%clk 0:01:14]} 20. Nh3 {[%clk 0:02:24]}  Nh6 {[%clk 0:00:46]} 21. Nhg5 {[%clk 0:02:21]}  Ne6 {[%clk 0:00:39]} 22. Bc1 {[%clk 0:02:17]}  Nf5 {[%clk 0:00:31]} 23. Bd2 {[%clk 0:02:15]}  Be7 {[%clk 0:00:25]} 24. a4 {[%clk 0:02:13]}  Nxg5 {[%clk 0:00:25]} 25. Bxg5 {[%clk 0:02:11]}  Nd6 {[%clk 0:00:20]} 26. Nxc5 {[%clk 0:02:03]}  Qf5 {[%clk 0:00:21]} 27. Bxe7 {[%clk 0:02:01]}  Rxe7 {[%clk 0:00:21]} 28. Ne4 {[%clk 0:01:56]}  Nxe4 {[%clk 0:00:19]} 29. dxe4 {[%clk 0:01:57]}  Ref7 {[%clk 0:00:19]} 30. exf5 {[%clk 0:01:57]} 1-0


[Site "https://www.chess.com"]